fUSD/lending_fUSD_20250926
["ID","MTS","AMOUNT","RATE_DAILY","PERIOD"]
[387844783,1758921212097,-208.35752869,0.00018557,2]
[387844784,1758921214835,-18.04122349,0.00018557,2]
[387844785,1758921214859,-237.10507443,0.00018557,2]
[387844790,1758921218822,-159.722695,0.00018557,2]
[387844791,1758921224999,-103.17223057,0.00018557,2]
[387844792,1758921225024,-56.55046481,0.00018557,2]
[387844793,1758921231403,-275.12347202,0.00018557,2]
[387844794,1758921233833,-123.80685409,0.00018557,2]
[387844795,1758921233862,-178.59006765,0.00018557,2]
[387844796,1758921239092,-216.92631188,0.00018557,2]
[387844797,1758921241357,-196.62990047,0.00018557,2]
[387844798,1758921243986,-48.14527493,0.00018557,2]
[387844799,1758921244009,-201.85472507,0.00018557,2]
[387844800,1758921246106,-46.79173156,0.00018557,2]
[387844802,1758921360442,500.0,0.00030136,120]
[387844803,1758921360657,500.0,0.00030136,120]
[387844804,1758921360854,500.0,0.00030136,120]
[387844805,1758921361121,500.0,0.00030136,120]
[387844806,1758921361550,500.0,0.00030136,120]
[387844807,1758921361873,500.0,0.00030136,120]
[387844808,1758921362064,500.0,0.00030136,120]
[387844809,1758921362215,500.0,0.00030136,120]
[387844810,1758921362362,500.0,0.00030136,120]
[387844811,1758921362524,500.0,0.00030136,120]
[387844812,1758921362671,500.0,0.00030136,120]
[387844814,1758921393185,500.0,0.00018457,2]
[387844815,1758921422194,500.0,0.00030136,120]
[387844816,1758921422350,500.0,0.00030136,120]
[387844817,1758921422939,500.0,0.00030136,120]
[387844818,1758921423323,500.0,0.00030136,120]
[387844819,1758921423523,500.0,0.00030136,120]
[387844820,1758921477446,1182.821422,0.00018482,2]
[387844822,1758921697870,176.48,9.371e-05,2]
[387844823,1758921806020,500.0,0.00030136,120]
[387844824,1758921806250,500.0,0.00030136,120]
[387844825,1758921806450,500.0,0.00030136,120]
[387844826,1758921835012,500.0,0.00030136,120]
[387844827,1758921835448,500.0,0.00030136,120]
[387844828,1758921835699,500.0,0.00030136,120]
[387844829,1758921842987,500.0,0.00030136,120]
[387844831,1758921904803,161.64070028,0.00018,2]
[387844832,1758921929744,150.0,0.00018,2]
[387844834,1758921941330,190.641893,0.00018402,2]
[387844835,1758921942000,190.641893,0.00018402,2]
[387844836,1758921942397,190.641893,0.00018401,2]
[387844837,1758921942681,190.641893,0.00018156,2]
[387844838,1758921943025,190.641893,0.00018156,2]
[387844839,1758921943575,190.641893,0.00017909,2]
[387844840,1758921943891,190.641893,0.00017909,2]
[387844841,1758921944670,190.641893,0.00017897,2]
[387844842,1758921945114,190.641893,0.00017859,2]
[387844843,1758921945312,150.648713,0.00018401,2]
[387844844,1758921945424,190.641893,0.00017857,2]
[387844845,1758921945551,150.648713,0.00018156,2]
[387844846,1758921945640,156.279046,0.00018401,2]
[387844847,1758921945759,190.641893,0.00017857,2]
[387844848,1758921945884,150.648713,0.00017897,2]
[387844849,1758921945919,156.279046,0.00017909,2]
[387844850,1758921946027,190.641893,0.00017856,2]
[387844851,1758921946115,150.648713,0.00017857,2]
[387844852,1758921946173,156.279046,0.00017859,2]
[387844853,1758921946234,190.641893,0.00017852,2]
[387844854,1758921946336,150.648713,0.00017852,2]
[387844855,1758921946395,156.279046,0.00017856,2]
[387844856,1758921946435,190.641893,0.00017719,2]
[387844860,1758922019775,11130.3990214,0.0003013,120]
[387844894,1758922229000,500.0,0.00030136,120]
[387844895,1758922229336,500.0,0.00030136,120]
[387844896,1758922229573,502.32757503,0.00030136,120]
[387844901,1758922232489,-716.19,0.00018524,2]
[387844902,1758922232500,-57.2091641,0.00018537,2]
[387844903,1758922232517,-137.7908359,0.00018537,2]
[387844904,1758922232527,-521.53978646,0.00018537,2]
[387844905,1758922232573,-455.23217681,0.00018537,2]
[387844906,1758922232627,-1023.22803673,0.00018537,2]
[387844907,1758922232637,-750.27411492,0.00018549,2]
[387844908,1758922232878,-1249.72588508,0.00018549,2]
[387844909,1758922232888,-250.0,0.00018549,2]
[387844910,1758922232898,-195.0,0.00018554,2]
[387844911,1758922232907,-1628.122,0.00018557,2]
[387844912,1758922232917,-250.0,0.00018565,2]
[387844913,1758922232927,-300.0,0.00018574,2]
[387844914,1758922232936,-1200.0,0.00018574,2]
[387844915,1758922232946,-500.0,0.00018575,2]
[387844916,1758922232956,-500.0,0.00018575,2]
[387844917,1758922232966,-542.01984945,0.00018575,2]
[387844918,1758922232975,-195.0,0.00018575,2]
[387844919,1758922232985,-300.0,0.00018575,2]
[387844920,1758922232995,-298.25,0.00018651,2]
[387844921,1758922233005,-250.0,0.00018703,2]
[387844922,1758922233014,-169.6,0.00018838,2]
[387844923,1758922233025,-2413.72920383,0.00018997,2]
[387844924,1758922233035,-201.93286099,0.00018997,2]
[387844925,1758922233045,-267.46074303,0.00018997,2]
[387844926,1758922233056,-305.209606,0.00019,2]
[387844927,1758922233066,-150.0,0.00019007,7]
[387844928,1758922233076,-172.68,0.00019271,2]
[387844929,1758922233087,-400.0,0.000194,7]
[387844930,1758922233097,-180.0,0.0001945,2]
[387844931,1758922233107,-800.0,0.000195,7]
[387844932,1758922233117,-934.47345189,0.00019551,2]
[387844933,1758922233130,-1200.0,0.000196,7]
[387844934,1758922233140,-167.8364596,0.00019651,2]
[387844935,1758922233150,-168.8620201,0.00019651,2]
[387844936,1758922233160,-6489.90423494,0.00019651,2]
[387844937,1758922233172,-4708.70145173,0.00019651,2]
[387844938,1758922233184,-27035.48583201,0.00019651,2]
[387844939,1758922233195,-29786.55731642,0.00019651,2]
[387844940,1758922233207,-756.43081065,0.00019651,2]
[387844941,1758922233218,-2894.44775361,0.00019651,2]
[387844942,1758922233230,-871.0,0.00019651,2]
[387844943,1758922233267,-2917.11884798,0.00019651,2]
[387844944,1758922233279,-1015.83524192,0.00019651,2]
[387844976,1758922238325,-1348.01432635,0.00019651,2]
[387845044,1758922244031,-75778.29788499,0.00019651,2]
[387845045,1758922244040,-6539.4976732,0.00019651,2]
[387845046,1758922244050,-1700.0,0.000197,7]
[387845047,1758922244059,-158.24451721,0.00019723,2]
[387845048,1758922244069,-2474.72,0.00019726,2]
[387845049,1758922244079,-151.0,0.00019744,2]
[387845050,1758922244088,-151.0,0.00019744,2]
[387845051,1758922244098,-151.0,0.00019744,2]
[387845052,1758922244107,-151.0,0.00019744,2]
[387845053,1758922244117,-151.0,0.00019744,2]
[387845054,1758922244126,-183.26500271,0.00019744,2]
[387845055,1758922244137,-500.0,0.00019744,2]
[387845056,1758922244147,-151.0,0.00019744,2]
[387845057,1758922244156,-177.10399553,0.00019744,2]
[387845058,1758922244165,-1000.0,0.00019744,2]
[387845059,1758922244175,-322.6107,0.00019744,2]
[387845060,1758922244185,-691.16,0.00019746,2]
[387845061,1758922244196,-1052.63114057,0.00019755,2]
[387845062,1758922244205,-63901.94278369,0.00019756,2]
[387845063,1758922244215,-3108.8905923,0.00019776,2]
[387845064,1758922244224,-169.6,0.0001978,2]
[387845065,1758922244234,-3108.8905923,0.00019792,2]
[387845066,1758922244243,-500.0,0.00019792,2]
[387845067,1758922244253,-150.0,0.00019792,2]
[387845068,1758922244263,-500.0,0.00019792,2]
[387845069,1758922244272,-438.0,0.00019792,2]
[387845070,1758922244282,-1425.0,0.00019793,2]
[387845071,1758922244292,-468.35519,0.000198,2]
[387845072,1758922244302,-2100.0,0.000198,7]
[387845073,1758922244312,-2427.616171,0.000198,2]
[387845074,1758922244321,-166.21010503,0.000198,2]
[387845075,1758922244331,-3108.8905923,0.00019807,2]
[387845076,1758922244341,-19020.3908223,0.0001981,2]
[387845077,1758922244350,-2427.61617091,0.00019811,2]
[387845078,1758922244360,-2427.61617091,0.00019822,2]
[387845079,1758922244370,-3108.8905923,0.00019823,2]
[387845080,1758922244379,-2427.61617091,0.00019833,2]
[387845081,1758922244391,-3108.8905923,0.00019838,2]
[387845082,1758922244400,-200.0,0.0001984,2]
[387845083,1758922244410,-150.0,0.0001984,2]
[387845084,1758922244420,-150.0,0.0001984,2]
[387845085,1758922244429,-150.0,0.0001984,2]
[387845086,1758922244439,-150.0,0.0001984,2]
[387845087,1758922244449,-150.0,0.0001984,2]
[387845088,1758922244459,-150.0,0.0001984,2]
[387845089,1758922244470,-500.0,0.0001984,2]
[387845090,1758922244483,-150.0,0.0001984,2]
[387845091,1758922244493,-150.16152274,0.0001984,2]
[387845092,1758922244502,-150.42039053,0.0001984,2]
[387845093,1758922244513,-150.0,0.0001984,2]
[387845094,1758922244526,-150.0,0.0001984,2]
[387845095,1758922244535,-150.0,0.0001984,2]
[387845096,1758922244545,-150.0,0.0001984,2]
[387845097,1758922244556,-150.0,0.0001984,2]
[387845098,1758922244566,-2427.61617091,0.00019844,2]
[387845099,1758922244576,-498.97018848,0.00019848,2]
[387845100,1758922244587,-3108.8905923,0.00019854,2]
[387845101,1758922244596,-211.77748747,0.00019855,2]
[387845102,1758922244606,-181.57525157,0.00019855,2]
[387845103,1758922244616,-273.3943556,0.00019855,2]
[387845104,1758922244625,-2427.61617091,0.00019856,2]
[387845105,1758922244635,-334.31002625,0.00019858,2]
[387845106,1758922244645,-181.57525157,0.00019862,2]
[387845107,1758922244654,-334.31002625,0.00019862,2]
[387845108,1758922244664,-523.58833317,0.00019863,2]
[387845109,1758922244673,-211.77748747,0.00019866,2]
[387845110,1758922244684,-2427.61617091,0.00019867,2]
[387845111,1758922244693,-273.3943556,0.00019868,2]
[387845112,1758922244703,-3108.8905923,0.00019869,2]
[387845113,1758922244712,-181.57525157,0.00019871,2]
[387845114,1758922244722,-273.3943556,0.00019873,2]
[387845115,1758922244731,-2427.61617091,0.00019878,2]
[387845116,1758922244740,-248.28110412,0.00019878,2]
[387845117,1758922244750,-498.97018848,0.0001988,2]
[387845118,1758922244760,-5000.0,0.00019882,2]
[387845119,1758922244769,-5000.0,0.00019884,2]
[387845120,1758922244779,-3108.8905923,0.00019885,2]
[387845121,1758922244788,-2427.61617091,0.00019889,2]
[387845122,1758922244798,-691.16,0.0001989,2]
[387845123,1758922244807,-334.31002625,0.00019893,2]
[387845124,1758922244817,-300.0,0.00019899,2]
[387845125,1758922244829,-245.46949074,0.000199,2]
[387845126,1758922244838,-3108.8905923,0.000199,2]
[387845127,1758922244848,-409878.76478484,0.000199,2]
[387845128,1758922244910,-665982.34740911,0.000199,2]
[387845129,1758922244920,-150.0,0.000199,2]
[387845130,1758922244930,-5000.0,0.000199,2]
[387845131,1758922244940,-500.0,0.000199,2]
[387845132,1758922244950,-150.0,0.000199,2]
[387845133,1758922244960,-2246.0,0.000199,2]
[387845134,1758922244969,-150.0,0.000199,2]
[387845135,1758922244979,-150.0,0.000199,2]
[387845136,1758922244988,-1285.0,0.000199,2]
[387845137,1758922244998,-163.01947938,0.000199,2]
[387845138,1758922245007,-500.0,0.000199,2]
[387845139,1758922245017,-150.0,0.000199,2]
[387845140,1758922245026,-468.3552,0.000199,2]
[387845141,1758922245035,-250.0,0.000199,2]
[387845142,1758922245044,-150.0,0.000199,2]
[387845143,1758922245053,-400.0,0.000199,7]
[387845144,1758922245063,-150.0,0.000199,2]
[387845145,1758922245072,-2427.61617091,0.000199,2]
[387845146,1758922245082,-789.43866815,0.000199,2]
[387845147,1758922245091,-181.09044594,0.000199,2]
[387845148,1758922245101,-761.5867282,0.000199,2]
[387845149,1758922245110,-3101.3237484,0.00019908,2]
[387845150,1758922245120,-211.77748747,0.00019909,2]
[387845151,1758922245129,-181.57525157,0.00019915,2]
[387845152,1758922245139,-523.58833317,0.00019916,2]
[387845153,1758922245148,-248.28110412,0.00019919,2]
[387845154,1758922245158,-273.3943556,0.00019921,2]
[387845155,1758922245167,-334.31002625,0.00019926,2]
[387845156,1758922245176,-273.3943556,0.00019936,2]
[387845157,1758922245186,-181.57525157,0.00019937,2]
[387845158,1758922245195,-211.77748747,0.00019941,2]
[387845159,1758922245205,-181.57525157,0.00019947,2]
[387845160,1758922245216,-334.31002625,0.00019949,2]
[387845161,1758922245225,-211.77748747,0.00019949,2]
[387845162,1758922245235,-211.77748747,0.00019949,2]
[387845163,1758922245244,-498.97018848,0.0001995,2]
[387845164,1758922245254,-273.3943556,0.00019951,2]
[387845165,1758922245264,-273.3943556,0.00019953,2]
[387845166,1758922245442,-993.29,0.00019956,2]
[387845167,1758922245496,-248.28110412,0.00019963,2]
[387845168,1758922245506,-498.97018848,0.00019964,2]
[387845169,1758922245515,-500.0,0.00019973,2]
[387845170,1758922245524,-181.57525157,0.00019973,2]
[387845171,1758922245534,-523.58833317,0.00019979,2]
[387845172,1758922245544,-523.58833317,0.0001998,2]
[387845173,1758922245554,-500.0,0.00019981,2]
[387845174,1758922245564,-150.0,0.00019981,2]
[387845175,1758922245573,-150.0,0.00019981,2]
[387845176,1758922245583,-523.58833317,0.00019981,2]
[387845177,1758922245592,-160.65615785,0.00019981,2]
[387845178,1758922245602,-211.77748747,0.00019982,2]
[387845179,1758922245611,-498.97018848,0.00019983,2]
[387845180,1758922245621,-334.31002625,0.00019986,2]
[387845181,1758922245631,-248.28110412,0.00019986,2]
[387845182,1758922245641,-498.97018848,0.00019988,2]
[387845183,1758922245651,-334.31002625,0.00019988,2]
[387845184,1758922245660,-523.58833317,0.00019989,2]
[387845185,1758922245670,-523.58833317,0.00019991,2]
[387845186,1758922245679,-248.28110412,0.00019993,2]
[387845187,1758922245688,-498.97018848,0.00019994,2]
[387845188,1758922245698,-1425.0,0.00019997,2]
[387845189,1758922245707,-248.28110412,0.00019998,2]
[387845190,1758922245717,-300.0,0.00019999,2]
[387845191,1758922245726,-150.0,0.00019999,2]
[387845192,1758922245736,-5000.0,0.00019999,2]
[387845193,1758922245745,-107573.84912887,0.00019999,2]
[387845194,1758922245754,-248.28110412,0.00019999,2]
[387845195,1758922245764,-2168.88860635,0.00019999,2]
[387845196,1758922245774,-499.99,0.0002,2]
[387845197,1758922245783,-289.59,0.0002,2]
[387845198,1758922245793,-500.0,0.0002,2]
[387845199,1758922245802,-171290.02867128,0.0002,2]
[387845200,1758922245815,-550.2324966,0.0002,2]
[387845201,1758922245848,-1807.85668897,0.0002,2]
[387845202,1758922245957,-1340.0,0.0002,2]
[387845203,1758922245971,-2000.0,0.0002,2]
[387845204,1758922246055,-321.503,0.0002,2]
[387845206,1758922248774,-500.0,0.00019792,2]
[387845207,1758922248784,-1306.22920627,0.0002,2]
[387845208,1758922248819,-2222.41,0.0002,2]
[387845209,1758922248979,-1067.86847001,0.0002,2]
[387845210,1758922251492,-197.37,0.00019812,2]
[387845211,1758922251501,-197.37,0.0001989,2]
[387845212,1758922251511,-197.37,0.0001989,2]
[387845213,1758922251523,-7064.97868599,0.0002,2]
[387845216,1758922397947,500.0,0.00030136,120]
[387845217,1758922398314,500.0,0.00030136,120]
[387845218,1758922398589,500.0,0.00030136,120]
[387845219,1758922398894,500.0,0.00030136,120]
[387845220,1758922399112,500.0,0.00030136,120]
[387845221,1758922399603,500.0,0.00030136,120]
[387845222,1758922399811,500.0,0.00030136,120]
[387845223,1758922399980,500.0,0.00030136,120]
[387845224,1758922400201,500.0,0.00030136,120]
[387845225,1758922400491,500.0,0.00030136,120]
[387845226,1758922400672,500.0,0.00030136,120]
[387845227,1758922400970,500.0,0.00030136,120]
[387845228,1758922401390,500.0,0.00030136,120]
[387845229,1758922401575,500.0,0.00030136,120]
[387845230,1758922401832,500.0,0.00030136,120]
[387845231,1758922401993,500.0,0.00030136,120]
[387845232,1758922402271,500.0,0.00030136,120]
[387845233,1758922402526,500.0,0.00030136,120]
[387845234,1758922402987,500.0,0.00030136,120]
[387845235,1758922403218,500.0,0.00030136,120]
[387845236,1758922403488,411.56,0.00030136,120]
[387845237,1758922440109,507.75,0.00030136,120]
[387845238,1758922536291,150.0,0.00018521,2]
[387845239,1758922538151,-152.0,0.00018557,2]
[387845240,1758922558775,-187.16,0.00018557,2]
[387845241,1758922560524,-190.09478855,0.00018557,2]
[387845246,1758922563623,-17.09521145,0.00018557,2]
[387845247,1758922585505,400.0,0.00030136,120]
[387845249,1758922619581,500.0,0.00030136,120]
[387845250,1758922660062,152.513515,0.00018402,2]
[387845251,1758922660431,152.513515,0.00018401,2]
[387845252,1758922660696,152.513515,0.00018156,2]
[387845253,1758922660972,152.513515,0.00017909,2]
[387845254,1758922662028,152.513515,0.00017909,2]
[387845255,1758922662443,152.513515,0.00017859,2]
[387845256,1758922662886,152.513515,0.00017857,2]
[387845257,1758922663172,152.513515,0.00017856,2]
[387845258,1758922663357,150.648714,0.00018401,2]
[387845259,1758922663576,150.648714,0.00017909,2]
[387845260,1758922663628,152.513515,0.00017852,2]
[387845261,1758922663879,150.648714,0.00017857,2]
[387845262,1758922667367,156.279046,0.00018156,2]
[387845263,1758922667817,156.279046,0.00017857,2]
[387845270,1758922745612,-267.27197922,0.00018554,2]
[387845271,1758922751184,-274.88962978,0.00018554,2]
[387845272,1758922786712,500.0,0.00030136,120]
[387845275,1758922813192,282.30989462,0.00030136,120]
[387845281,1758922941711,400.0,0.00030136,120]
[387845282,1758922952072,500.0,0.00030136,120]
[387845283,1758922952156,500.0,0.00030136,120]
[387845284,1758922952262,500.0,0.00030136,120]
[387845285,1758922952322,500.0,0.00030136,120]
[387845286,1758922952394,602.89,0.00030136,120]
[387845287,1758922954850,500.0,0.00030136,120]
[387845288,1758922955007,500.0,0.00030136,120]
[387845289,1758922955203,500.0,0.00030136,120]
[387845290,1758922955564,500.0,0.00030136,120]
[387845291,1758922955708,500.0,0.00030136,120]
[387845292,1758922955863,536.9,0.00030136,120]
[387845293,1758922966097,-268.03735725,0.00018548,2]
[387845294,1758922969546,-190.26905656,0.00018548,2]
[387845295,1758922971302,-250.0,0.00018548,2]
[387845296,1758922975061,-124.54050718,0.00018548,2]
[387845301,1758923102758,-170.73432078,0.00018557,2]
[387845302,1758923106533,-283.157,0.00018557,2]
[387845303,1758923108844,-263.90199916,0.00018557,2]
[387845304,1758923111341,-264.57954295,0.00018557,2]
[387845305,1758923113560,-133.58513711,0.00018557,2]
[387845307,1758923144276,150.648714,0.00017897,2]
[387845308,1758923146729,156.279046,0.00017897,2]
[387845310,1758923162962,-152.93302096,0.00018557,2]
[387845311,1758923205188,-152.0,0.00018548,2]
[387845312,1758923213369,-32.55038849,0.00018548,2]
[387845313,1758923213393,-149.39097904,0.00018557,2]
[387845326,1758923397905,250.0,0.00018451,2]
[387845384,1758923433609,-1200.0,0.00018646,2]
[387845385,1758923433619,-300.0,0.00018646,2]
[387845386,1758923433629,-300.0,0.00018646,2]
[387845387,1758923433640,-300.0,0.00018647,2]
[387845388,1758923433650,-171.33553883,0.00018647,2]
[387845389,1758923433660,-250.0,0.00018647,2]
[387845390,1758923433669,-195.0,0.00018647,2]
[387845391,1758923433679,-2500.0,0.00018647,2]
[387845392,1758923433689,-1677.7836511,0.00018647,2]
[387845393,1758923433699,-2500.0,0.00018647,2]
[387845394,1758923433708,-2500.0,0.00018647,2]
[387845395,1758923433718,-1523.67213434,0.00018647,2]
[387845396,1758923433728,-150.0,0.00018699,7]
[387845397,1758923433739,-366.62,0.00018704,2]
[387845398,1758923433748,-168.0,0.00018939,2]
[387845399,1758923433759,-374.28226471,0.00018999,2]
[387845400,1758923433769,-201.93286099,0.00018999,2]
[387845401,1758923433779,-168.0,0.00019018,2]
[387845402,1758923433789,-184.55038849,0.00019239,2]
[387845403,1758923433799,-547.0,0.00019247,2]
[387845404,1758923433809,-150.0,0.00019288,2]
[387845405,1758923433818,-945.76,0.000193,2]
[387845406,1758923433828,-1000.0,0.00019328,2]
[387845407,1758923433839,-1000.0,0.00019328,2]
[387845408,1758923433849,-1000.0,0.00019328,2]
[387845409,1758923433859,-1000.0,0.00019328,2]
[387845410,1758923433868,-1000.0,0.00019328,2]
[387845411,1758923433879,-1000.0,0.00019328,2]
[387845412,1758923433888,-1000.0,0.00019328,2]
[387845413,1758923433898,-1000.0,0.00019328,2]
[387845414,1758923433908,-500.0,0.00019328,2]
[387845415,1758923433919,-322.6107,0.00019328,2]
[387845416,1758923433929,-547.0,0.00019334,2]
[387845417,1758923433939,-268.0,0.00019375,2]
[387845418,1758923433949,-1600.98,0.000194,2]
[387845419,1758923433961,-806.06,0.000194,2]
[387845420,1758923433972,-334.52,0.000194,2]
[387845421,1758923433982,-200.0,0.000194,7]
[387845422,1758923433991,-168.0,0.00019403,2]
[387845423,1758923434002,-168.0,0.00019416,2]
[387845424,1758923434011,-500.0,0.000195,7]
[387845425,1758923434022,-700.0,0.000196,7]
[387845426,1758923434032,-1000.0,0.000197,7]
[387845427,1758923434043,-1483.78,0.000197,2]
[387845428,1758923434053,-1000.0,0.00019716,2]
[387845429,1758923434063,-412.02,0.00019753,2]
[387845430,1758923434073,-196.5,0.00019772,2]
[387845431,1758923434083,-300.0,0.00019786,2]
[387845432,1758923434092,-1000.0,0.00019786,2]
[387845433,1758923434102,-1425.0,0.00019794,2]
[387845434,1758923434114,-1913.37022,0.000198,2]
[387845435,1758923434123,-1300.0,0.000198,7]
[387845436,1758923434133,-1425.0,0.00019809,2]
[387845437,1758923434143,-20295.85770057,0.0001981,2]
[387845438,1758923434152,-24115.14828623,0.0001981,2]
[387845439,1758923434162,-1425.0,0.00019819,2]
[387845440,1758923434171,-1425.0,0.00019822,2]
[387845441,1758923434181,-168.0,0.00019834,2]
[387845442,1758923434191,-200.0,0.0001984,2]
[387845443,1758923434202,-151.06090267,0.00019841,2]
[387845444,1758923434211,-217.52314418,0.00019841,2]
[387845445,1758923434221,-547.0,0.00019845,2]
[387845446,1758923434230,-705.79917276,0.00019849,2]
[387845447,1758923434240,-203.33273099,0.00019856,2]
[387845448,1758923434249,-217.52314418,0.00019857,2]
[387845449,1758923434259,-222.48764243,0.00019858,2]
[387845450,1758923434268,-178.69747453,0.00019861,2]
[387845451,1758923434278,-213.17524994,0.00019866,2]
[387845452,1758923434287,-222.48764243,0.00019868,2]
[387845453,1758923434297,-228.47424369,0.00019869,2]
[387845454,1758923434306,-222.48764243,0.00019869,2]
[387845455,1758923434316,-203.33273099,0.00019871,2]
[387845456,1758923434325,-156.31937031,0.00019872,2]
[387845457,1758923434335,-217.52314418,0.00019873,2]
[387845458,1758923434344,-203.33273099,0.00019875,2]
[387845459,1758923434353,-228.47424369,0.00019876,2]
[387845460,1758923434363,-213.17524994,0.00019876,2]
[387845461,1758923434373,-151.06090267,0.00019881,2]
[387845462,1758923434383,-228.47424369,0.00019884,2]
[387845463,1758923434392,-771.55517011,0.00019885,2]
[387845464,1758923434402,-222.48764243,0.00019885,2]
[387845465,1758923434411,-178.69747453,0.00019886,2]
[387845466,1758923434421,-500.0,0.0001989,2]
[387845467,1758923434431,-213.17524994,0.0001989,2]
[387845468,1758923434441,-203.33273099,0.00019894,2]
[387845469,1758923434450,-719.20082724,0.00019897,2]
[387845470,1758923434459,-596.96115164,0.000199,2]
[387845471,1758923434469,-5000.0,0.000199,2]
[387845472,1758923434479,-596.96115164,0.000199,2]
[387845473,1758923434488,-210.4024206,0.000199,2]
[387845474,1758923434498,-1889.3973,0.000199,2]
[387845475,1758923434508,-596.96115164,0.000199,2]
[387845476,1758923434518,-297.5965722,0.000199,2]
[387845477,1758923434528,-1913.37022,0.000199,2]
[387845478,1758923434537,-500.0,0.000199,2]
[387845479,1758923434547,-817.0,0.000199,2]
[387845480,1758923434557,-500.0,0.000199,2]
[387845481,1758923434566,-150.0,0.000199,2]
[387845482,1758923434576,-150.0,0.000199,2]
[387845483,1758923434585,-500.0,0.000199,2]
[387845484,1758923434595,-150.0,0.000199,2]
[387845485,1758923434604,-500.0,0.000199,2]
[387845486,1758923434614,-150.0,0.000199,2]
[387845487,1758923434623,-472.0,0.000199,2]
[387845488,1758923434633,-500.0,0.000199,2]
[387845489,1758923434643,-200.0,0.000199,7]
[387845490,1758923434652,-181.09044594,0.000199,2]
[387845491,1758923434662,-167.24169854,0.000199,2]
[387845492,1758923434671,-150.0,0.000199,2]
[387845493,1758923434681,-150.0,0.000199,2]
[387845494,1758923434691,-500.0,0.000199,2]
[387845495,1758923434700,-2369.0,0.000199,2]
[387845496,1758923434709,-150.0,0.000199,2]
[387845497,1758923434719,-150.0,0.000199,2]
[387845498,1758923434728,-500.0,0.000199,2]
[387845499,1758923434737,-1317.0,0.000199,2]
[387845500,1758923434747,-163.01947938,0.000199,2]
[387845501,1758923434756,-500.0,0.000199,2]
[387845502,1758923434766,-150.0,0.000199,2]
[387845503,1758923434775,-250.0,0.000199,2]
[387845504,1758923434785,-500.0,0.000199,2]
[387845505,1758923434795,-866.79325475,0.000199,2]
[387845506,1758923434804,-29806.94368721,0.000199,2]
[387845507,1758923434813,-178.69747453,0.00019902,2]
[387845508,1758923434823,-156.31937031,0.00019903,2]
[387845509,1758923434832,-151.06090267,0.00019905,2]
[387845510,1758923434841,-151.06090267,0.00019905,2]
[387845511,1758923434851,-156.31937031,0.00019907,2]
[387845512,1758923434860,-156.31937031,0.00019908,2]
[387845513,1758923434870,-222.48764243,0.00019909,2]
[387845514,1758923434879,-228.47424369,0.00019909,2]
[387845515,1758923434889,-178.69747453,0.0001991,2]
[387845516,1758923434898,-178.69747453,0.0001991,2]
[387845517,1758923434908,-233.41032444,0.0001991,2]
[387845518,1758923434917,-156.31937031,0.00019914,2]
[387845519,1758923434927,-213.17524994,0.00019918,2]
[387845520,1758923434936,-203.33273099,0.00019921,2]
[387845521,1758923434945,-213.17524994,0.00019923,2]
[387845522,1758923434955,-217.52314418,0.00019923,2]
[387845523,1758923434965,-156.31937031,0.00019923,2]
[387845524,1758923434975,-178.69747453,0.00019924,2]
[387845525,1758923434985,-1425.0,0.00019926,2]